Cogmind - Beta 9.6 @@@ ROGUE MODE // 2020.08.11 @ 20:47:41 Player: Coronach Result: Destroyed by Y-45 Defender with Heavy Assault Rifle Performance ------------- Evolutions (1) 500 Regions Visited (3) 600 Robots Destroyed (71) 355 Value Destroyed (1860) 1860 Prototype IDs (9) 180 Alien Tech Used (0) 0 Bonus (22) 22 TOTAL SCORE: 3517 Bonus ------- High Alert Combat Kills 22 Cogmind --------- Core Integrity 0/400 Matter 230/300 Energy 280/280 System Corruption 6% Temperature Cool (9) Movement Treading (160) Location -9/Storage Parts ------- > --- POWER (1) -------- Cooled Ion Engine > --- PROPULSION (3) --- Improved Treads Improved Treads Improved Treads > --- UTILITY (3) ------ Medium Storage Unit Large Storage Unit Large Storage Unit > --- WEAPON (2) ------- Improved Medium Laser Heavy Assault Rifle > --- INVENTORY (20) --- Cooled Ion Engine Cooled Ion Engine Cooled Ion Engine Light Treads Light Treads Improved Treads Improved Heat Sink Cooling System Improved Sensor Array Improved Sensor Array Improved Signal Interpreter Medium Armor Plating Improved Medium Laser Improved Medium Laser Improved Medium Laser Heavy Assault Rifle Rocket Launcher Rocket Launcher Mini Grenade Launcher Katana Peak State ------------ > --- POWER ------------ Cooled Ion Engine > --- PROPULSION ------- Improved Treads Improved Treads Improved Treads > --- UTILITY ---------- Medium Storage Unit Large Storage Unit Large Storage Unit > --- WEAPON ----------- Improved Medium Laser Katana > --- INVENTORY -------- Cooled Ion Engine Cooled Ion Engine Cooled Ion Engine Light Treads Light Treads Improved Treads Improved Heat Sink Cooling System Improved Sensor Array Improved Sensor Array Signal Interpreter Medium Armor Plating Improved Medium Laser Improved Medium Laser Improved Medium Laser Heavy Assault Rifle Heavy Assault Rifle Rocket Launcher Rocket Launcher Mini Grenade Launcher [Rating: 22] Favorites ----------- Power Ion Engine Engine Ion Engine Power Core Light Nuclear Core Propulsion Light Treads Treads Light Treads Leg Aluminum Leg Wheel Compact Wheel Utility Medium Storage Unit Device Sensor Array Storage Medium Storage Unit Weapon Heavy Assault Rifle Energy Gun Beam Rifle Energy Cannon Light EM Pulse Cannon Ballistic Gun Heavy Assault Rifle Ballistic Cannon Improved Light Cannon Launcher Grenade Launcher Special Weapon Plasma Cutter Impact Weapon Flail Slashing Weapon Katana Build | -11 -10 -9 -9 ------- Run | Scr Mat Mat Sto Slots Evolved 2 | . . 2 . Power . | . . . . Propulsion 1 | . . 1 . Utility 1 | . . 1 . Weapon . | . . . . Parts Attached 102 | . 21 58 23 Power 9 | . 2 5 2 Engine 8 | . 1 5 2 Core 1 | . 1 . . Reactor . | . . . . Propulsion 19 | . 2 13 4 Treads 14 | . . 10 4 Leg . | . . . . Wheel 5 | . 2 3 . Hover . | . . . . Flight . | . . . . Utility 14 | . 8 6 . Device 5 | . 5 . . Storage 9 | . 3 6 . Processor . | . . . . Hackware . | . . . . Protection . | . . . . Artifact . | . . . . Weapon 60 | . 9 34 17 Energy Gun 16 | . 1 10 5 Energy Cannon 1 | . . 1 . Ballistic Gun 19 | . 4 9 6 Ballistic Cannon 2 | . . 2 . Launcher 8 | . 4 3 1 Special Weapon 1 | . . 1 . Impact Weapon 1 | . . 1 . Slashing Weapon 12 | . . 7 5 Piercing Weapon . | . . . . Special Melee Weapon . | . . . . Unidentified Prototypes 1 | . . . 1 Parts Lost 23 | . 4 15 4 Power 4 | . 1 3 . Propulsion 7 | . . 7 . Utility 1 | . 1 . . Weapon 11 | . 2 5 4 Highest Loss Streak 4 | . 1 4 3 Average Slot Usage (%) 98 | . 95 98 99 Engine 11 | . 13 10 11 Treads 22 | . . 28 32 Wheel 9 | . 28 4 . Device 1 | . 7 . . Storage 29 | . 17 32 33 Energy Gun 7 | . 7 8 6 Energy Cannon 1 | . . 2 1 Ballistic Gun 11 | . 19 7 10 Slashing Weapon 1 | . . 1 3 Naked Turns . | . . . . Heaviest Build 62 | 11 49 62 54 Greatest Support 69 | 20 32 60 69 Greatest Overweight (x) 2 | . 1 2 . Average Overweight (x) . | . . . . Largest Inventory Capacity 24 | 6 16 24 20 Average Capacity 17 | 6 10 19 20 Most Carried 21 | 6 16 21 20 Average Carried 16 | 6 8 18 19 Final Capacity 20 | 6 16 20 20 Final Carried 20 | 6 16 20 20 Class Distribution -------------------- 44% | Hauler-Mutant 30% | Scavenger-Mutant 24% | Mutant Dominant Class ---------------- Mutant | -10/Materials Hauler-Mutant | -9/Materials Hauler-Mutant | -9/Storage Resources | -11 -10 -9 -9 ----------- Run | Scr Mat Mat Sto Matter Collected 1875 | 200 419 933 323 Remotely . | . . . . Salvage Created 2350 | . 468 1262 620 Parts 145 | . 38 72 35 Haulers Intercepted 2 | . . 2 . Recyclers Shooed 7 | . 2 2 3 Parts Field Recycled . | . . . . Retrieved Matter . | . . . . Parts Self-Destructed . | . . . . Prevented . | . . . . Kills | -11 -10 -9 -9 ------- Run | Scr Mat Mat Sto Combat Hostiles Destroyed 51 | . 10 27 14 Melee 2 | . . . 2 Guns 26 | . 3 15 8 Cannons 4 | . . 4 . AOE 18 | . 7 7 4 Classes Destroyed 11 | . 6 5 . Worker 5 | . 2 2 1 Builder 3 | . 3 . . Tunneler 1 | . . 1 . Hauler 2 | . . 2 . Recycler 5 | . 1 3 1 Operator 1 | . 1 . . Watcher 3 | . 1 1 1 Swarmer 11 | . . 7 4 Grunt 26 | . 10 11 5 Duelist 3 | . . 2 1 Sentry 11 | . . 7 4 Best Kill Streak 7 | . 5 7 6 Combat Bots Only 5 | . 2 5 4 Max Kills in Single Turn 5 | . 2 2 5 Gunslinging . | . . . . Exploded 3 | . 2 2 3 Melee 1 | . . . 1 Uniques/NPCs Destroyed . | . . . . Combat | -11 -10 -9 -9 -------- Run | Scr Mat Mat Sto Damage Taken 3420 | . 449 2081 890 Core 526 | . 115 306 105 Absorbed by Shields . | . . . . Core Remaining (%) 77 | 100 54 . . Volleys Fired 163 | . 41 80 42 Largest 2 | . 2 2 2 Hottest 112 | . 60 112 101 Shots Fired 284 | . 67 146 71 Gun 228 | . 57 106 65 Cannon 29 | . . 25 4 Launcher 23 | . 10 11 2 Special 4 | . . 4 . Kinetic 141 | . 43 61 37 Thermal 76 | . 14 56 6 Explosive 23 | . 10 11 2 Electromagnetic 44 | . . 18 26 Robot Hit Streak 15 | . 7 11 15 Robot Miss Streak 4 | . 3 4 3 Penetration Max . | . . . . Secondary Targets . | . . . . Shots Hit Robots 200 | . 41 95 64 Core Hits 127 | . 42 58 27 Critical Hits 5 | . . 3 2 Critical Kills 1 | . . 1 . Critical Parts Destroyed 4 | . . 2 2 Melee Attacks 26 | . . 7 19 Impact . | . . . . Slashing 26 | . . 7 19 Piercing . | . . . . Sneak Attacks 2 | . . 1 1 Combat Hostiles . | . . . . Follow-up Attacks . | . . . . Damage Inflicted 4737 | . 970 2452 1315 Guns 2290 | . 327 1134 829 Cannons 305 | . . 305 . Explosions 1732 | . 643 876 213 Melee 378 | . . 105 273 Ramming . | . . . . Kinetic 1346 | . 237 636 473 Thermal 806 | . 90 617 99 Explosive 1732 | . 643 876 213 Electromagnetic 475 | . . 218 257 Impact . | . . . . Slashing 378 | . . 105 273 Piercing . | . . . . Highest Corruption 6 | . . 6 6 Average Corruption 6 | . . 6 6 Corruption Purged . | . . . . Effects 43 | . . 12 31 Message Errors 7 | . . . 7 Matter Fused 8 | . . 3 5 Heat Flow Errors 5 | . . 3 2 Energy Discharges 3 | . . . 3 Parts Rejected 1 | . . . 1 Data Loss (minor) 3 | . . 1 2 Data Loss (major) 2 | . . . 2 Misfires 1 | . . . 1 Targeting Errors 12 | . . 5 7 Weapon Failures 1 | . . . 1 Overload Shots . | . . . . Overflow Damage 108 | . . 101 7 Projectiles . | . . . . Explosions 36 | . . 36 . Melee 72 | . . 65 7 Knockbacks . | . . . . Impact . | . . . . Kinetic . | . . . . Secondary . | . . . . Self-Inflicted Damage 47 | . 5 42 . Shots 3 | . 1 2 . Rammed . | . . . . Targets Rammed . | . . . . Kicked . | . . . . Crushed . | . . . . Highest Temperature 326 | . 73 316 326 Average Temperature 85 | . 18 95 110 Received Heat Transfer 1092 | . 234 534 324 Effects 2 | . . 1 1 Energy Bleed 1 | . . 1 . Short Circuit 1 | . . . 1 Siege Activations . | . . . . Robots Corrupted . | . . . . Combat Hostiles . | . . . . Parts Fried 1 | . . . 1 Impact Corruptions . | . . . . Robots Melted 1 | . . 1 . Combat Hostiles 1 | . . 1 . Parts Melted 3 | . . 3 . Heat Transferred 2050 | . 200 1628 222 Parts Sabotaged . | . . . . Parts Stolen . | . . . . Parts Stripped . | . . . . Power Chain Reactions . | . . . . Missiles Intercepted . | . . . . Alert | -11 -10 -9 -9 ------- Run | Scr Mat Mat Sto Peak Influence 449 | . 216 449 402 Average Influence 216 | . 81 263 260 Maximum Alert Level 2 | . 1 2 2 Low Security (%) 51 | 100 99 39 27 Level 1 38 | . . 43 66 Level 2 9 | . . 16 5 Level 3 . | . . . . Level 4 . | . . . . Level 5 . | . . . . High Security . | . . . . Max Security . | . . . . Squads Dispatched 5 | . 3 2 . Investigation 2 | . 1 1 . Extermination . | . . . . Reinforcement 3 | . 2 1 . Assault . | . . . . Garrison . | . . . . Intercept . | . . . . Construction Impeded . | . . . . Haulers Reinforced . | . . . . Stealth | -11 -10 -9 -9 --------- Run | Scr Mat Mat Sto Distress Signals 4 | . 1 1 2 Communications Jammed . | . . . . Distress Signals . | . . . . Times Spotted 79 | . 16 40 23 Peak Tracking Total 5 | . 3 5 5 Tactical Retreats 9 | . 1 4 4 Traps | -11 -10 -9 -9 ------- Run | Scr Mat Mat Sto Traps Triggered 1 | . 1 . . Indirectly . | . . . . Trap Hack Attempts . | . . . . Triggered . | . . . . Disarmed . | . . . . Reprogrammed . | . . . . Reused . | . . . . Traps Extracted . | . . . . Installed . | . . . . Triggered . | . . . . Machines | -11 -10 -9 -9 ---------- Run | Scr Mat Mat Sto Machines Disabled 4 | . 1 3 . Max in Single Turn 1 | . 1 1 . Machines Sabotaged . | . . . . Garrisons Compromised . | . . . . Overloaded Fab Kills . | . . . . Fab Network Shutdowns . | . . . . Hacking | -11 -10 -9 -9 --------- Run | Scr Mat Mat Sto Machines Accessed 22 | . 6 9 7 Terminals 16 | . 4 5 7 Fabricators . | . . . . Repair Stations 1 | . . 1 . Recycling Units 3 | . 2 1 . Scanalyzers 2 | . . 2 . Garrison Access . | . . . . Total Hacks 55 | . 16 26 13 Successful 30 | . 11 14 5 Failed 25 | . 5 12 8 Catastrophic 4 | . . 2 2 Database Lockouts . | . . . . Manual 4 | . . 2 2 Terminals 34 | . 10 11 13 Fabricators . | . . . . Repair Stations 3 | . . 3 . Recycling Units 9 | . 6 3 . Scanalyzers 9 | . . 9 . Garrison Access . | . . . . Terminal Hacks 17 | . 7 5 5 Robot Analysis 1 | . . 1 . Prototype ID Bank 4 | . 2 1 1 Open Door 2 | . . . 2 Branch Access Points 2 | . . 1 1 Locate Traps 4 | . 3 . 1 Hauler Manifests 2 | . 1 1 . Zone Layout 2 | . 1 1 . Fabricator Hacks . | . . . . Repair Station Hacks . | . . . . Recycling Unit Hacks 5 | . 4 1 . Report Inventory 3 | . 2 1 . Retrieve Matter 1 | . 1 . . Retrieve Components 1 | . 1 . . Scanalyzer 8 | . . 8 . Insert Component 4 | . . 4 . Analyze 4 | . . 4 . Garrison Access Hacks . | . . . . Unauthorized Hacks . | . . . . Terminals . | . . . . Fabricators . | . . . . Repair Stations . | . . . . Recycling Units . | . . . . Scanalyzers . | . . . . Garrison Access . | . . . . Data Cores Recovered . | . . . . Used . | . . . . Hacking Detections 17 | . 6 5 6 Full Trace Events 4 | . 2 1 1 Feedback Events . | . . . . Feedback Blocked . | . . . . Robot Schematics Acquired . | . . . . Robots Built . | . . . . Matter . | . . . . Time . | . . . . Total Robot Build Rating . | . . . . Part Schematics Acquired 4 | . . 4 . Parts Built . | . . . . Matter . | . . . . Time . | . . . . Total Part Build Rating . | . . . . Parts Repaired . | . . . . Time . | . . . . Parts Recycled . | . . . . Recycled Matter . | . . . . Retrieved Matter . | . . . . Retrieved Components 3 | . 3 . . Parts Scanalyzed 4 | . . 4 . Part Schematics Acquired 4 | . . 4 . Parts Damaged . | . . . . Bothacking | -11 -10 -9 -9 ------------ Run | Scr Mat Mat Sto Used RIF Installer . | . . . . Robots Hacked . | . . . . Non-combat . | . . . . Combat . | . . . . Robot Hacks Applied . | . . . . Relay Couplers Released . | . . . . Robots Rewired . | . . . . Allies Hacked . | . . . . Hacks Repelled . | . . . . Allies | -11 -10 -9 -9 -------- Run | Scr Mat Mat Sto Total Allies . | . . . . Largest Group . | . . . . Highest-Rated Group . | . . . . Highest-Rated Ally . | . . . . Total Orders . | . . . . Ally Attacks . | . . . . Total Damage . | . . . . Kills . | . . . . Allies Corrupted . | . . . . Allies Melted . | . . . . Intel | -11 -10 -9 -9 ------- Run | Scr Mat Mat Sto Robot Analysis Total 1 | . . 1 . Derelict Logs Recovered . | . . . . Drone Launches . | . . . . Drone Recoveries . | . . . . Exploration | -11 -10 -9 -9 ------------- Run | Scr Mat Mat Sto Turns Passed 3013 | 3 762 1423 825 Spaces Moved 1562 | 3 566 649 344 Core . | . . . . Treads 880 | . . 536 344 Legs 3 | 3 . . . Wheels 679 | . 566 113 . Hover . | . . . . Flight . | . . . . Fastest Speed 96 | 120 100 96 160 Average Speed 135 | 120 103 150 160 Slowest Speed 180 | 120 110 180 160 Overloaded Moves . | . . . . Propulsion Burnouts . | . . . . Robots Hopped . | . . . . Cave-ins Triggered 1 | . . 1 . Exploration Rate (%) 53 | 2 88 65 59 Regions Visited 3 Branch Regions 1 Pre-discovered Areas . | . . . . Known Exits Taken 1 | . . 1 . Unknown Exits Taken 2 | 1 1 . . Scrap Searched . | . . . . Spaces Dug 10 | . . 6 4 Terrain Destroyed 133 | . 42 69 22 Melee 10 | . . 6 4 Projectile 1 | . . 1 . AOE 122 | . 42 62 18 Actions | -11 -10 -9 -9 --------- Run | Scr Mat Mat Sto Total 2130 | 2 680 931 517 Wait 152 | . 21 65 66 Move 1559 | 2 565 648 344 Hop . | . . . . Pick Up 72 | . 19 42 11 Fast Attach 13 | . 6 5 2 Attach 32 | . 6 21 5 Detach 8 | . 3 5 . Swap 57 | . 9 32 16 Drop 48 | . 10 26 12 Fire 163 | . 41 80 42 Melee 26 | . . 7 19 Ram . | . . . . Kick . | . . . . Crush . | . . . . Escape Stasis . | . . . . Rewire . | . . . . Trap . | . . . . Miscellaneous . | . . . . Route ------- -11/Scrapyard -10/Materials (discovered 4 exits: *Mat x3 / [*Min]) -9/Materials (discovered 5 exits: [*Mat x3] / Min / *Sto) -9/Storage (discovered 1 exit: Rec) History --------- Turn | Location | Event 1 | -11/Scrapyard | Discovered new exit (range 3) 4 | -11/Scrapyard | Entered Materials 209 | -10/Materials | Discovered new exit (range 9) 294 | -10/Materials | Discovered new exit (range 12) 316 | -10/Materials | Build established: Mutant 328 | -10/Materials | Discovered new exit (range 9) 724 | -10/Materials | Discovered new exit (range 6) 766 | -10/Materials | Entered another Materials area 766 | -9/Materials | Evolved 2 slots: Propulsion x1, Utility x1 840 | -9/Materials | Discovered new exit (range 9) 966 | -9/Materials | Lost 3 parts (2n1w) 1048 | -9/Materials | Build established: Hauler-Mutant 1104 | -9/Materials | Discovered new exit (range 3) 1278 | -9/Materials | Discovered new exit (range 16) 1379 | -9/Materials | Lost 3 parts (1n2w) 1473 | -9/Materials | Core integrity fell below 50% 1501 | -9/Materials | Lost 4 parts (1p2n1w) 1585 | -9/Materials | Identified exit to Mines 1585 | -9/Materials | Identified exit to Storage 1704 | -9/Materials | Discovered new exit (range 10) 1767 | -9/Materials | Crushed by falling debris 1972 | -9/Materials | Build established: Scavenger-Mutant 2189 | -9/Materials | Entered Storage 2266 | -9/Storage | Core integrity fell below 20% 2386 | -9/Storage | Lost 3 parts (3w) 2682 | -9/Storage | Identified exit to Recycling 2846 | -9/Storage | Build established: Hauler-Mutant 3014 | -9/Storage | Destroyed by Y-45 Defender with Heavy Assault Rifle Last Messages --------------- 02939_ U-05 Engineer builds a Wall. 02940_ U-05 Engineer lays Concrete. 02942_ K-01 Serf collects debris. 02944_ U-05 Engineer lays Concrete. 02950_ K-01 Serf collects debris. 02952_ U-05 Engineer lays Concrete. 02952_ U-05 Engineer builds a Door. 02953_ U-05 Engineer builds a Wall. 02954_ K-01 Serf collects debris. 02955_ U-05 Engineer lays Concrete. 02956_ U-05 Engineer builds a Wall. 02957_ K-01 Serf collects debris. 02959_ U-05 Engineer lays Concrete. 02959_ Dropped Signal Interpreter. 02960_ U-05 Engineer lays Concrete. 02960_ Acquired Imp. Signal Interpreter. 02960_ K-01 Serf collects debris. 02966_ System corrupted: Substantial component data lost. 02968_ K-01 Serf collects debris. 02995_ System corrupted: Matter fused (-8). Map ----- +----------------------------------------------------+ | ??????????????????????????????????????????? | | ??????????????????????????????????????????? | | ??????????????????????????????????????????? | | ??????????????????????????????????????????? | | ??????????????????????????????????????????? | | ??????????????????????????????????????????? | | ??????????????????????????????????????????? | | ??????????????????????????????????????????? | | ??????????????????????????????????????????? | | ??????????????????????????????????????????? | | ??????????????????????????????????????????? | | ??????????????????????????????????????????? | | ????????????????? ????????????????????????? | | ????????????????? ????????????????????????? | | ????????????????? ????????????????????????? | | ????????????????? ????????????????????????? | | ????????????????? ????????????????????????? | | ????????????????? ????????????????????????? | | ????????????????# ????????????????????????? | | ????????????????# #???????????????????????? | | ??????????###???# #???????????????????????? | | ??????????#""???# #???????????????????????? | | ??????#####"Y"??# #???????????????????????? | | ?????## ?# #???????????????????????? | | ?????"" !!! #Y################????????? | | ?????? !!! # @ a ???????? | | ??????????? + r ???????? | | ????????????????# ???????? | | ????????????????### ##############????????? | | ??????????????????# #?????????????????????? | | ??????????????????# #?????????????????????? | | ??????????????????# #?????????????????????? | | ??????????????????# ########??????????????? | | ??????????????????# +?????????? | | ??????????????????# ##########????#####???? | | ??????????????????# #????# %???# #???? | | ??????????????????# #????# ???# ##### | | ??????????????????# #????# ??# | | ??????????????????# #????# ??# | | ??????????????????# #????#! ?# ##### | | ??????????????????# #????# |?+ #???? | | ????????????????###+###### % # #???? | | ????????????????# ! # # #???? | | ????????????????# !# + #???? | | ????????????????# !########## #???? | | ????????????????# ! #????????# ##### | | ????????????????# #????????# # | | ????????????????# #????????# # "" | | ????????????????# #????????# # "? | | ????????????????# #????????# # "? | +----------------------------------------------------+ Best States ------------- Heat Dissipation 35 Energy Generation 14 Energy Capacity 280 Matter Stores 300 Matter Capacity 300 Sight Range 16 Robot Scan Range 10 Terrain Scan Density 10 Evasion (%) 40 Recoil Reduction 3 Item Schematics ----------------- Com. Wheel | -9/Materials | Scanalyzed Katana | -9/Materials | Scanalyzed Imp. Heat Sink | -9/Materials | Scanalyzed Grenade Launcher | -9/Materials | Scanalyzed Robot Schematics ------------------ None Fabricated ------------ Nothing Alien Tech Used ----------------- None Achievements -------------- None Challenges ------------ None Game ------ Seed AlloyNovaSuperbattery Manual? 0 Play Time 01:50:35 Cumulative 20.0 hours Start 2020.08.11 @ 18:28:07 End 2020.08.11 @ 20:47:41 Sessions 1 Manual Loads 0 Difficulty Rogue Special Mode None Game No. 7 Rogue 4 Adventurer 0 Explorer 3 Win Type - Total 0 Types 0/0/0/0/0/0/0 Lore% 21 Gallery% 24 Achievement% 19 Wizard Run 0 Options --------- ASCII 0 Keyboard 0 Movement Mouse Keybinds 0 Fullscreen 1 Font 16/Dina Map View 76x50 Tactical HUD 1 Map Filters NONE Filters NONE Steam 1 RUN: c342910d-fe82-4920-9ae2-f0cb31fc41aa